lending/lending_fUSD_20250316
["ID","MTS","AMOUNT","RATE_DAILY","PERIOD"]
[356256103,1742143840393,-1025.24639998,0.00045953,2]
[356256191,1742143842907,-4760.4626082,0.00045953,2]
[356256197,1742143843014,-711.68192145,0.00045953,2]
[356256199,1742143843027,-5512.22743228,0.00045953,2]
[356256201,1742143843037,-571.0,0.00045963,2]
[356256203,1742143843047,-787.0,0.00045963,2]
[356256205,1742143843056,-1268.0,0.00045963,2]
[356256207,1742143843067,-541.0,0.00045963,2]
[356256209,1742143843076,-907.0,0.00045963,2]
[356256211,1742143843086,-2117.09194437,0.00045963,2]
[356256220,1742143844668,-1961.90805563,0.00045963,2]
[356256221,1742143844678,-1429.0,0.00045963,2]
[356256222,1742143844688,-272.692,0.00045963,2]
[356256223,1742143844698,-151.0,0.00045963,2]
[356256224,1742143844707,-151.0,0.00045963,2]
[356256225,1742143844718,-34.39994437,0.00045963,2]
[356256226,1742143844734,-132.13005563,0.00045963,2]
[356256227,1742143844743,-3935.0,0.00045963,2]
[356256228,1742143844753,-160.731,0.00045963,2]
[356256229,1742143844762,-170.633,0.00045963,2]
[356256230,1742143844773,-870.646,0.00045963,2]
[356256231,1742143844783,-1114.0,0.00045963,2]
[356256232,1742143844793,-1434.672,0.00045963,75]
[356256233,1742143844802,-172.18,0.00045963,75]
[356256234,1742143844811,-2000.0,0.00046,120]
[356256235,1742143844821,-2521.94994913,0.00046,120]
[356256266,1742143845953,-2478.05005087,0.00046,120]
[356256267,1742143845963,-1582.70320309,0.00046,120]
[356256268,1742143846111,-267.29692638,0.00046,120]
[356256358,1742143864276,-154.47261532,0.00045999,5]
[356256393,1742145032307,-0.99133033,0.00026849,2]
[356256394,1742145032319,-163.89866967,0.00026849,2]
[356256395,1742145032328,-500.0,0.00029534,2]
[356256396,1742145032337,-150.0,0.00029534,2]
[356256397,1742145032347,-500.0,0.00032003,2]
[356256398,1742145032355,-150.0,0.00032003,2]
[356256399,1742145032365,-500.0,0.00038932,2]
[356256400,1742145032379,-150.0,0.00038932,2]
[356256401,1742145032389,-423.24,0.00043332,2]
[356256402,1742145032398,-150.0,0.00043657,2]
[356256403,1742145032407,-238.173495,0.00044,120]
[356256404,1742145032416,-221.0,0.00044,120]
[356256405,1742145032425,-272.97043681,0.0004414,2]
[356256406,1742145032435,-887.94,0.0004436,2]
[356256407,1742145032444,-207.65,0.00044477,2]
[356256408,1742145032453,-207.65,0.00044594,2]
[356256409,1742145032462,-1035.66,0.00044614,2]
[356256410,1742145032472,-1651.80861161,0.00044614,120]
[356256411,1742145032483,-348.19138839,0.00044614,120]
[356256412,1742145032493,-207.65,0.00044711,2]
[356256413,1742145032502,-207.65,0.00044828,2]
[356256414,1742145032511,-908.34249502,0.00044855,120]
[356256415,1742145032534,-386.59750498,0.00044855,120]
[356256416,1742145032545,-4291.4049977,0.0004486,2]
[356256417,1742145032556,-2510.60206527,0.0004486,2]
[356256418,1742145032566,-4016.99999997,0.0004486,2]
[356256419,1742145032589,-6005.30786303,0.0004486,2]
[356256420,1742145035898,-392.91999999,0.0004486,2]
[356256421,1742145035952,-6682.76507404,0.0004486,2]
[356256422,1742145035962,-554.21,0.00044886,120]
[356256423,1742145035972,-201.53771922,0.000449,10]
[356256424,1742145035982,-200.0,0.00044905,2]
[356256425,1742145035991,-180.09546605,0.00044931,2]
[356256426,1742145036003,-819.90453395,0.00044931,2]
[356256428,1742145036013,-207.65,0.00044945,2]
[356256430,1742145036022,-77.44546605,0.00045,120]
[356256432,1742145036033,-14922.28356869,0.00045,120]
[356256434,1742145036043,-207.65,0.00045062,2]
[356256436,1742145036052,-207.65,0.00045179,2]
[356256438,1742145036061,-164.89,0.00045205,2]
[356256440,1742145036071,-207.65,0.00045296,2]
[356256442,1742145036080,-207.65,0.00045413,2]
[356256444,1742145036090,-190.73,0.00045427,2]
[356256446,1742145036099,-28728.7073053,0.0004549,2]
[356256448,1742145036108,-5028.0,0.000455,120]
[356256450,1742145036118,-207.65,0.0004553,2]
[356256452,1742145036130,-493.4504065,0.0004559,4]
[356256454,1742145036139,-423.24,0.00045596,2]
[356256456,1742145036148,-207.65,0.00045648,2]
[356256458,1742145036157,-644.82,0.000457,28]
[356256460,1742145036167,-1687.6701255,0.0004574,2]
[356256462,1742145036176,-1147.737,0.0004574,75]
[356256464,1742145036185,-172.18,0.0004574,75]
[356256466,1742145036195,-1568.1875,0.00045762,2]
[356256468,1742145036204,-207.65,0.00045765,2]
[356256470,1742145036214,-518.0691,0.0004578,2]
[356256472,1742145036223,-5000.0,0.000458,120]
[356256474,1742145036232,-2929.5365,0.00045862,2]
[356256476,1742145036241,-583.4337,0.00045863,2]
[356256478,1742145036250,-325.2305,0.00045863,2]
[356256481,1742145036260,-289.18546856,0.00045879,35]
[356256483,1742145036269,-15513.10767207,0.00045879,35]
[356256580,1742145037943,-1418.98397657,0.00045879,35]
[356256583,1742145037956,-941.63946266,0.00045879,35]
[356256584,1742145037968,-8413.364,0.00045879,35]
[356256585,1742145037980,-3203.66850137,0.00045879,35]
[356256586,1742145037992,-2025.26836107,0.00045879,35]
[356256587,1742145038015,-2869.6376563,0.00045879,35]
[356256588,1742145038055,-3057.374,0.00045879,35]
[356256589,1742145038067,-1001.89352422,0.00045879,35]
[356256590,1742145038080,-5756.26978952,0.00045879,35]
[356256591,1742145038163,-9479.26349559,0.00045879,35]
[356256592,1742145038175,-9493.85687916,0.00045879,35]
[356256593,1742145038187,-519.750011,0.00045879,35]
[356256594,1742145038217,-326.92083092,0.00045879,35]
[356256769,1742145040169,-2148.2701255,0.00045879,35]
[356256786,1742145040328,-12003.19228229,0.00045879,35]
[356256788,1742145040339,-313.8384,0.0004588,2]
[356256790,1742145040350,-3250.414,0.0004588,2]
[356256792,1742145040361,-4744.2072,0.0004588,2]
[356256794,1742145040374,-13751.1957,0.0004588,2]
[356256796,1742145040389,-207.65,0.00045882,2]
[356256798,1742145040398,-500.0,0.00045889,120]
[356256800,1742145040408,-531.47124088,0.00045889,120]
[356256802,1742145040416,-500.0,0.00045889,120]
[356256804,1742145040425,-543.15441556,0.00045889,120]
[356256806,1742145040435,-500.0,0.00045889,120]
[356256808,1742145040445,-500.0,0.00045889,120]
[356256810,1742145040453,-500.0,0.00045889,120]
[356256812,1742145040464,-500.0,0.00045889,120]
[356256814,1742145040473,-500.0,0.00045889,120]
[356256816,1742145040483,-500.0,0.00045889,120]
[356256818,1742145040492,-14758.0794,0.00045889,2]
[356256820,1742145040501,-1120.1031,0.0004589,2]
[356256822,1742145040510,-20000.0,0.0004589,120]
[356256824,1742145040519,-20000.0,0.0004589,120]
[356256826,1742145040528,-20000.0,0.0004589,120]
[356256828,1742145040538,-20000.0,0.0004589,120]
[356256830,1742145040547,-20000.0,0.0004589,120]
[356256832,1742145040556,-20000.0,0.0004589,120]
[356256834,1742145040565,-15587.00556364,0.0004589,120]
[356256836,1742145040577,-359.12918017,0.0004589,120]
[356256838,1742145040588,-1533.91026026,0.0004589,120]
[356256841,1742145040606,-2519.95499593,0.0004589,120]
[356256843,1742145040615,-20000.0,0.0004589,120]
[356256845,1742145040625,-20000.0,0.0004589,120]
[356256847,1742145040636,-20000.0,0.0004589,120]
[356256849,1742145040646,-18166.35045041,0.0004589,2]
[356256851,1742145040657,-3909.03024959,0.0004589,2]
[356256853,1742145040667,-1000.0,0.0004589,2]
[356256855,1742145040676,-150.3215781,0.000459,120]
[356256857,1742145040685,-812.5096,0.000459,10]
[356256859,1742145040694,-2615.86392944,0.000459,120]
[356256861,1742145040705,-8542.713982,0.000459,120]
[356256863,1742145040717,-1853.93265602,0.000459,120]
[356256865,1742145040728,-424.64116351,0.000459,120]
[356256868,1742145040740,-722.1,0.000459,120]
[356256871,1742145040767,-1331.07032631,0.000459,120]
[356256946,1742145043218,-14358.07293169,0.000459,120]
[356256955,1742145045797,-1106.60310953,0.000459,120]
[356256957,1742145045809,-7659.61034267,0.000459,120]
[356256959,1742145045821,-552.27745472,0.000459,120]
[356257002,1742145046224,-49721.11410411,0.000459,120]
[356257004,1742145046234,-5000.0,0.000459,120]
[356257006,1742145046244,-476.0,0.000459,120]
[356257008,1742145046253,-151.0,0.000459,14]
[356257010,1742145046263,-151.0,0.000459,14]
[356257012,1742145046273,-153.703556,0.000459,14]
[356257013,1742145046283,-151.0,0.000459,14]
[356257014,1742145046297,-151.0,0.000459,14]
[356257015,1742145046307,-571.0,0.00045963,2]
[356257016,1742145046316,-787.0,0.00045963,2]
[356257017,1742145046325,-1268.0,0.00045963,2]
[356257018,1742145046337,-907.0,0.00045963,2]
[356257019,1742145046347,-190.652,0.00045963,2]
[356257020,1742145046357,-2586.4,0.00045963,2]
[356257021,1742145046367,-541.0,0.00045963,2]
[356257022,1742145046377,-768.744,0.00045963,2]
[356257023,1742145046387,-1088.65052,0.00045963,79]
[356257024,1742145046399,-152.80249984,0.00045973,10]
[356257025,1742145046408,-160.15289872,0.00045973,10]
[356257026,1742145046417,-160.3707005,0.00045973,10]
[356257027,1742145046427,-500.07600339,0.00045973,2]
[356257028,1742145046437,-3632.21460521,0.00045978,120]
[356257030,1742145046447,-154.122247,0.0004598,14]
[356257032,1742145046457,-151.0,0.0004598,14]
[356257033,1742145046467,-151.0,0.0004598,14]
[356257034,1742145046477,-151.0,0.0004598,14]
[356257035,1742145046486,-151.0,0.0004598,14]
[356257036,1742145046495,-151.0,0.0004598,14]
[356257037,1742145046505,-151.0,0.0004598,14]
[356257038,1742145046514,-151.0,0.0004598,14]
[356257039,1742145046524,-151.0,0.0004598,14]
[356257040,1742145046534,-151.0,0.0004598,14]
[356257041,1742145046543,-29167.89032304,0.00045989,120]
[356257044,1742145046552,-168.67806534,0.0004599,30]
[356257046,1742145046562,-1000.0,0.0004599,30]
[356257049,1742145046571,-151.0,0.0004599,14]
[356257051,1742145046580,-151.0,0.0004599,14]
[356257052,1742145046590,-151.0,0.0004599,14]
[356257053,1742145046599,-151.0,0.0004599,14]
[356257054,1742145046608,-151.0,0.0004599,14]
[356257055,1742145046617,-151.0,0.0004599,14]
[356257056,1742145046627,-151.0,0.0004599,14]
[356257057,1742145046638,-151.0,0.0004599,14]
[356257058,1742145046647,-151.0,0.0004599,14]
[356257059,1742145046657,-151.0,0.0004599,14]
[356257060,1742145046666,-151.0,0.0004599,14]
[356257061,1742145046675,-151.0,0.0004599,14]
[356257062,1742145046684,-151.0,0.0004599,14]
[356257063,1742145046694,-151.0,0.0004599,14]
[356257064,1742145046703,-151.0,0.0004599,14]
[356257065,1742145046712,-151.0,0.0004599,14]
[356257066,1742145046721,-151.0,0.0004599,14]
[356257067,1742145046731,-154.099008,0.0004599,14]
[356257068,1742145046741,-151.0,0.0004599,14]
[356257069,1742145046750,-151.0,0.0004599,14]
[356257070,1742145046759,-151.0,0.0004599,14]
[356257071,1742145046769,-151.0,0.0004599,14]
[356257072,1742145046779,-151.0,0.0004599,14]
[356257073,1742145046789,-226.122438,0.0004599,14]
[356257074,1742145046798,-223745.496867,0.0004599,3]
[356257075,1742145046808,-152.038015,0.0004599,14]
[356257076,1742145046817,-151.0,0.0004599,14]
[356257077,1742145046827,-151.0,0.0004599,14]
[356257078,1742145046836,-151.0,0.0004599,14]
[356257079,1742145046847,-151.0,0.0004599,14]
[356257080,1742145046858,-207.65,0.00045999,2]
[356257081,1742145046867,-1038.83,0.00045999,7]
[356257082,1742145046877,-500.0,0.00045999,120]
[356257083,1742145046887,-999.0,0.00045999,120]
[356257084,1742145046897,-150.0,0.00045999,120]
[356257085,1742145046906,-100000.0,0.00046,21]
[356257086,1742145046916,-149.99987053,0.00046,120]
[356257087,1742145046925,-10330.20025382,0.00046,120]
[356257088,1742145046936,-265.8036,0.00046,2]
[356257089,1742145046945,-675.32364776,0.00046,120]
[356257090,1742145046955,-633082.06067388,0.00046,2]
[356257091,1742145046967,-7494.04530111,0.00046,2]
[356257100,1742145908571,91000.0,0.0001,2]
[356257101,1742145908606,2530.06525744,0.0001,2]
[356257102,1742145908638,1995958.94390779,0.0001,2]
[356257103,1742145908669,137123.60872344,0.0001,2]
[356257104,1742145935016,8846.19286304,9.67e-05,2]
[356257138,1742146232371,-156.48,0.00026849,2]
[356257139,1742146232382,-500.0,0.00027687,2]
[356257140,1742146232392,-150.0,0.00027687,2]
[356257141,1742146232401,-500.0,0.00028958,2]
[356257142,1742146232411,-150.0,0.00028958,2]
[356257143,1742146232420,-500.0,0.00029534,2]
[356257144,1742146232430,-150.0,0.00029534,2]
[356257145,1742146232440,-300.0,0.00029779,2]
[356257146,1742146232450,-8445.48597556,0.0002978,2]
[356257147,1742146232462,-2113.28286315,0.0002978,2]
[356257148,1742146232473,-854.02,0.0002978,2]
[356257149,1742146232484,-4860.65215151,0.0002978,2]
[356257150,1742146232496,-774.34181465,0.0002978,2]
[356257151,1742146232521,-2738.3778603,0.0002978,2]
[356257152,1742146232531,-217.77360995,0.00030101,2]
[356257153,1742146232541,-150.0,0.000302,2]
[356257154,1742146232550,-235.35984798,0.00030201,60]
[356257155,1742146232559,-4015.51331122,0.00030201,2]
[356257156,1742146232569,-137.88037791,0.00030201,20]
[356257161,1742146238103,-417.89133502,0.00030201,20]
[356257162,1742146238113,-388.25308279,0.00030201,2]
[356257163,1742146238123,-243.85557219,0.00030201,2]
[356257164,1742146238135,-1141.60691107,0.00030201,2]
[356257165,1742146238147,-13550.17065513,0.00030201,2]
[356257166,1742146238158,-299.99,0.00030201,12]
[356257167,1742146238168,-9293.27,0.00030201,2]
[356257168,1742146238178,-999.99,0.00030201,2]
[356257169,1742146238188,-429.16762345,0.000309,5]
[356257170,1742146238198,-195.0,0.00032102,2]
[356257171,1742146238208,-429.16762331,0.00033279,6]
[356257172,1742146238218,-322.4278034,0.00034666,2]
[356257173,1742146238228,-156.48,0.00034716,2]
[356257174,1742146238238,-429.16762331,0.00035659,7]
[356257175,1742146238247,-429.16762331,0.00038038,8]
[356257176,1742146238257,-380.91,0.00039449,2]
[356257177,1742146238267,-8280.1712707,0.0004,30]
[356257178,1742146238276,-429.16762331,0.00040417,8]
[356257179,1742146238286,-380.91,0.00041713,2]
[356257180,1742146238296,-156.48,0.00042583,2]
[356257181,1742146238306,-429.16762331,0.00042797,9]
[356257182,1742146238316,-805.88,0.00043583,2]
[356257183,1742146238326,-380.91,0.00043977,2]
[356257184,1742146238336,-154.41,0.00044463,2]
[356257185,1742146238346,-2000.0,0.00044467,120]
[356257186,1742146238355,-370.0878049,0.0004462,4]
[356257187,1742146238364,-152.83,0.00044879,120]
[356257188,1742146238374,-9999.99,0.00044937,2]
[356257189,1742146238383,-1000.0,0.00044937,2]
[356257190,1742146238392,-250.0,0.00044938,2]
[356257191,1742146238402,-150.99,0.00044938,30]
[356257192,1742146238411,-6782.44,0.00044938,2]
[356257193,1742146238420,-10497.4067014,0.00045,2]
[356257194,1742146238433,-494.369955,0.00045,2]
[356257195,1742146238445,-172.53853238,0.00045,2]
[356257196,1742146238454,-95.74202165,0.00045176,10]
[356257197,1742146238465,-333.42560166,0.00045176,10]
[356257198,1742146238475,-907.20876,0.0004554,78]
[356257199,1742146238484,-511.912,0.00045664,2]
[356257200,1742146238494,-213.888,0.00045664,2]
[356257201,1742146238503,-541.0,0.00045664,2]
[356257202,1742146238512,-644.0,0.00045664,2]
[356257203,1742146238522,-230.28,0.000457,28]
[356257204,1742146238531,-179.45831315,0.000457,15]
[356257205,1742146238540,-1000.0,0.0004578,2]
[356257206,1742146238550,-2678.60339847,0.00045789,26]
[356257207,1742146238559,-4760.22392672,0.000458,2]
[356257208,1742146238571,-902.66,0.000458,2]
[356257209,1742146238583,-8506.43945686,0.000458,2]
[356257210,1742146238598,-16180.18862439,0.000458,2]
[356257217,1742146240428,-1400.23858137,0.000458,2]
[356257218,1742146240440,-21415.29841066,0.000458,2]
[356257219,1742146240450,-190.5787155,0.000458,22]
[356257220,1742146240460,-1000.0,0.000458,7]
[356257221,1742146240469,-853.01514074,0.0004588,18]
[356257222,1742146240478,-645.7181185,0.0004589,3]
[356257223,1742146240490,-2148.2701255,0.0004589,3]
[356257224,1742146240536,-1508.77679682,0.0004589,3]
[356257225,1742146240548,-733.14001655,0.0004589,3]
[356257226,1742146240595,-422.3836,0.0004589,3]
[356257227,1742146240658,-522.50459794,0.0004589,3]
[356257228,1742146240768,-2285.68321379,0.0004589,3]
[356257229,1742146240824,-432.93250001,0.0004589,3]
[356257230,1742146240880,-554.85750002,0.0004589,3]
[356257231,1742146240891,-414.07655165,0.0004589,3]
[356257233,1742146240938,-17007.19999999,0.0004589,3]
[356257238,1742146243334,-1543.88054635,0.0004589,3]
[356257242,1742146245375,-2574.32442928,0.0004589,3]
[356257243,1742146245385,-1313.165,0.00045899,75]
[356257244,1742146245395,-172.959,0.00045899,75]
[356257245,1742146245405,-372.02986862,0.00045899,120]
[356257246,1742146245415,-500.0,0.00045899,120]
[356257247,1742146245424,-500.0,0.00045899,120]
[356257248,1742146245434,-500.0,0.00045899,120]
[356257249,1742146245444,-500.0,0.00045899,120]
[356257250,1742146245454,-500.0,0.00045899,120]
[356257251,1742146245463,-500.0,0.00045899,120]
[356257252,1742146245472,-500.0,0.00045899,120]
[356257253,1742146245482,-180.2080909,0.00045899,120]
[356257254,1742146245491,-3451.88864054,0.000459,2]
[356257255,1742146245503,-509.50571749,0.000459,2]
[356257265,1742146246284,-17475.68498501,0.000459,2]
[356257266,1742146246298,-121747.17575696,0.000459,2]
[356257267,1742146246308,-5000.0,0.000459,120]
[356257268,1742146246318,-156.84818944,0.000459,21]
[356257269,1742146246327,-498.473,0.000459,10]
[356257270,1742146246337,-87570.04702745,0.000459,120]
[356257271,1742146246350,-1317.95297255,0.000459,120]
[356257272,1742146246360,-162.70196799,0.000459,21]
[356257273,1742146246370,-5256.78658099,0.00045969,3]
[356257274,1742146246382,-250.77066771,0.00045969,3]
[356257275,1742146246503,-4757.0254168,0.00045969,3]
[356257276,1742146246513,-19334.43275254,0.0004597,3]
[356257277,1742146246557,-326.208,0.0004597,3]
[356257278,1742146246570,-868.52457846,0.0004597,3]
[356257279,1742146246580,-2164.15491856,0.00045977,66]
[356257280,1742146246589,-9393.88218964,0.0004599,3]
[356257286,1742146396400,-157.01213013,0.00019,2]
[356257294,1742147402717,-92.98786987,0.00019,2]
[356257295,1742147402741,-111.75964696,0.00019475,2]
[356257303,1742147431579,-388.24035304,0.00019475,2]
[356257304,1742147431590,-150.0,0.00019713,2]
[356257305,1742147431599,-500.0,0.000209,2]
[356257306,1742147431608,-150.0,0.00021423,2]
[356257307,1742147431618,-150.0,0.00023443,2]
[356257308,1742147431627,-160.13821565,0.00026078,2]
[356257309,1742147431639,-339.86178435,0.00026078,2]
[356257310,1742147431649,-13.79744735,0.00039729,30]
[356257311,1742147431660,-1350.93491864,0.00039729,30]
[356257312,1742147431670,-323.77,0.00042519,2]
[356257313,1742147431680,-40910.23068945,0.00043,2]
[356257314,1742147431691,-329.02851133,0.000439,9]
[356257315,1742147431701,-187.59275015,0.00043909,2]
[356257316,1742147431711,-11553.29501237,0.00043919,2]
[356257317,1742147431721,-250.0,0.00044226,2]
[356257318,1742147431730,-657.63,0.00044276,2]
[356257319,1742147431739,-23900.0,0.00044393,2]
[356257320,1742147431749,-2000.0,0.00044513,120]
[356257321,1742147431759,-150.0,0.00044607,2]
[356257322,1742147431768,-277.5658537,0.0004462,4]
[356257323,1742147431778,-150.0,0.00044679,2]
[356257324,1742147431788,-323.77,0.00044783,2]
[356257325,1742147431797,-213.0,0.0004483,30]
[356257326,1742147431806,-150.0,0.0004489,2]
[356257327,1742147431816,-443.36,0.00044966,120]
[356257328,1742147431826,-1000.0,0.00044975,2]
[356257329,1742147431835,-150.99,0.00044975,30]
[356257331,1742147431845,-1775.0,0.00045,14]
[356257332,1742147431855,-150.99,0.00045,2]
[356257333,1742147431864,-1524.79,0.00045,2]
[356257334,1742147431874,-1720.85,0.00045298,2]
[356257335,1742147431883,-166.49,0.00045298,90]
[356257336,1742147431893,-12775.95,0.00045298,30]
[356257338,1742147431903,-879.68,0.00045298,30]
[356257339,1742147431912,-3671.8,0.00045298,2]
[356257341,1742147431922,-29549.28370156,0.00045361,2]
[356257342,1742147431931,-4000.0,0.000454,2]
[356257343,1742147431941,-1050.532,0.0004549,74]
[356257344,1742147431951,-172.95926833,0.0004549,74]
[356257345,1742147431961,-1000.0,0.000456,7]
[356257346,1742147431971,-499.10992846,0.0004565,120]
[356257347,1742147431981,-197.4,0.000457,28]
[356257348,1742147431990,-4554.8209,0.00045799,2]
[356257349,1742147432002,-1000.0,0.000458,2]
[356257350,1742147432013,-1000.0,0.000458,7]
[356257351,1742147432022,-329.0285112,0.00045831,10]
[356257352,1742147432032,-500.0,0.00045873,10]
[356257353,1742147432043,-500.0,0.00045873,10]
[356257355,1742147432052,-796.1474647,0.00045879,18]
[356257357,1742147432062,-209.0,0.0004588,30]
[356257359,1742147432071,-213.0,0.0004588,30]
[356257361,1742147432084,-20325.8412662,0.0004589,3]
[356257363,1742147432094,-5219.93,0.00045898,120]
[356257364,1742147432104,-222.56,0.00045898,120]
[356257366,1742147432113,-524.74541614,0.00045898,120]
[356257368,1742147432123,-387.5570147,0.00045898,120]
[356257370,1742147432133,-500.1477,0.00045898,120]
[356257371,1742147432143,-500.0,0.00045898,120]
[356257373,1742147432152,-500.6988,0.00045898,120]
[356257380,1742147432321,-500.0,0.00045898,120]
[356257381,1742147432331,-500.0,0.00045898,120]
[356257382,1742147432340,-500.0,0.00045898,120]
[356257383,1742147432350,-500.0,0.00045898,120]
[356257384,1742147432360,-1049.47,0.00045898,120]
[356257385,1742147432370,-500.0,0.00045898,120]
[356257386,1742147432380,-500.0,0.00045898,120]
[356257387,1742147432390,-439.45052248,0.00045898,120]
[356257388,1742147432400,-500.0,0.00045898,120]
[356257389,1742147432410,-500.0,0.00045898,120]
[356257390,1742147432419,-500.0,0.00045898,120]
[356257391,1742147432430,-500.0,0.00045898,120]
[356257392,1742147432440,-500.0,0.00045898,120]
[356257393,1742147432451,-500.0,0.00045898,120]
[356257394,1742147432460,-500.0,0.00045898,120]
[356257395,1742147432470,-500.0,0.00045898,120]
[356257396,1742147432480,-500.0,0.00045898,120]
[356257397,1742147432490,-500.0,0.00045898,120]
[356257398,1742147432500,-500.0,0.00045898,120]
[356257399,1742147432510,-500.0,0.00045898,100]
[356257400,1742147432519,-510.46490665,0.00045898,120]
[356257401,1742147432529,-961.79,0.00045898,120]
[356257402,1742147432539,-500.0,0.00045898,120]
[356257403,1742147432548,-500.0,0.00045898,120]
[356257404,1742147432558,-500.0,0.00045898,120]
[356257405,1742147432567,-500.0,0.00045898,120]
[356257406,1742147432578,-500.0,0.00045898,120]
[356257407,1742147432588,-500.0,0.00045898,120]
[356257408,1742147432598,-500.0,0.00045898,120]
[356257409,1742147432607,-500.0,0.00045898,120]
[356257410,1742147432618,-500.0,0.00045898,120]
[356257411,1742147432628,-500.0,0.00045898,120]
[356257412,1742147432638,-500.0,0.00045898,120]
[356257413,1742147432648,-500.0,0.00045898,120]
[356257414,1742147432657,-500.0,0.00045898,120]
[356257415,1742147432667,-500.0,0.00045898,120]
[356257416,1742147432676,-500.0,0.00045898,120]
[356257417,1742147432686,-500.0,0.00045898,120]
[356257418,1742147432697,-500.0,0.00045898,120]
[356257419,1742147432707,-500.0,0.00045898,120]
[356257420,1742147432716,-500.0,0.00045898,120]
[356257421,1742147432726,-500.0,0.00045898,2]
[356257422,1742147432737,-500.0,0.00045898,120]
[356257423,1742147432746,-5000.0,0.00045899,120]
[356257424,1742147432756,-302.24214387,0.00045899,120]
[356257425,1742147432766,-500.0,0.00045899,2]
[356257426,1742147432776,-500.0,0.00045899,120]
[356257427,1742147432785,-500.0,0.00045899,120]
[356257428,1742147432795,-294.38521137,0.00045899,120]
[356257429,1742147432805,-500.0,0.00045899,120]
[356257430,1742147432814,-301.97188622,0.00045899,120]
[356257431,1742147432823,-500.0,0.00045899,120]
[356257432,1742147432833,-500.0,0.00045899,120]
[356257433,1742147432842,-500.0,0.00045899,120]
[356257434,1742147432852,-500.0,0.00045899,120]
[356257435,1742147432862,-500.0,0.00045899,120]
[356257436,1742147432871,-500.0,0.00045899,120]
[356257437,1742147432890,-517.24283479,0.00045899,120]
[356257438,1742147432902,-500.0,0.00045899,120]
[356257439,1742147432912,-500.0,0.00045899,120]
[356257440,1742147432922,-500.0,0.00045899,120]
[356257441,1742147432932,-500.0,0.00045899,120]
[356257442,1742147432942,-500.0,0.00045899,120]
[356257443,1742147432952,-500.0,0.00045899,120]
[356257444,1742147432962,-500.0,0.00045899,120]
[356257445,1742147432972,-500.0,0.00045899,120]
[356257446,1742147432983,-500.0,0.00045899,120]
[356257447,1742147432993,-500.0,0.00045899,120]
[356257448,1742147433006,-500.0,0.00045899,120]
[356257449,1742147433016,-500.0,0.00045899,120]
[356257450,1742147433026,-500.0,0.00045899,120]
[356257451,1742147433036,-500.0,0.00045899,120]
[356257452,1742147433047,-500.0,0.00045899,120]
[356257453,1742147433056,-500.0,0.00045899,120]
[356257454,1742147433066,-500.0,0.00045899,120]
[356257455,1742147433078,-500.0,0.00045899,120]
[356257456,1742147433088,-500.0,0.00045899,120]
[356257457,1742147433098,-500.0,0.00045899,120]
[356257458,1742147433108,-500.0,0.00045899,120]
[356257459,1742147433118,-500.0,0.00045899,120]
[356257460,1742147433128,-585.85768006,0.00045899,120]
[356257461,1742147433138,-500.0,0.00045899,120]
[356257462,1742147433147,-500.0,0.00045899,120]
[356257463,1742147433158,-500.0,0.00045899,120]
[356257464,1742147433168,-500.0,0.00045899,120]
[356257465,1742147433178,-517.9,0.00045899,120]
[356257466,1742147433187,-500.0,0.00045899,120]
[356257467,1742147433197,-606.4567392,0.00045899,120]